bitfinex-derivatives/quotes_ETHF0:USTF0_20240913
["timestamp","ask_amount","ask_price","bid_price","bid_amount"]
[1726211628386,2.65984592,2342.9,2342.8,0.42686]
[1726211629185,2.23300592,2342.9,2342.8,0.42686]
[1726211629385,2.65984592,2342.9,2342.8,0.42686]
[1726211635182,0.42684,2342.9,2342.8,0.42686]
[1726211635588,7.47574547,2343.0,2342.7,0.7831]
[1726211635788,2.23299877,2342.8,2342.7,1.20997]
[1726211637390,3.04555877,2342.8,2342.7,1.20997]
[1726211638175,3.04555877,2342.8,2342.7,0.4037]
[1726211638383,0.81256,2342.8,2342.7,0.42687]
[1726211638586,4.01044547,2342.8,2342.7,0.42687]
[1726211638786,1.21796,2342.8,2342.7,0.42687]
[1726211638982,4.01044547,2342.8,2342.7,0.42687]
[1726211639177,0.42687,2342.7,2342.6,0.80408]
[1726211639486,2.66109612,2342.7,2342.6,0.80408]
[1726211639892,2.23422612,2342.7,2342.6,0.80408]
[1726211640279,2.23422612,2342.7,2342.6,1.91962294]
[1726211640585,2.23422612,2342.7,2342.6,0.80408]
[1726211640790,2.66165738,2342.7,2342.6,0.80408]
[1726211640989,2.66165963,2342.7,2342.6,0.80408]
[1726211641193,0.42687,2342.7,2342.6,1.49274294]
[1726211641495,0.42687,2342.7,2342.5,3.95541442]
[1726211641496,0.42689,2342.6,2342.5,0.42691]
[1726211641680,6.80973168,2342.7,2342.6,0.42689]
[1726211641885,3.60193168,2342.7,2342.6,0.42689]
[1726211642088,0.42689,2342.6,2342.5,1.54244294]
[1726211642287,0.42689,2342.6,2342.5,0.4269]
[1726211645591,2.66082485,2342.6,2342.5,0.4269]
[1726211645794,0.42689,2342.6,2342.5,0.4269]
[1726211646492,2.66072057,2342.6,2342.5,0.4269]
[1726211646901,0.42689,2342.6,2342.5,0.4269]
[1726211647291,2.66068817,2342.6,2342.5,0.4269]
[1726211647487,0.42693,2342.4,2342.3,1.11554294]
[1726211647686,0.42693,2342.4,2342.2,1.67331442]
[1726211647687,0.42695,2342.3,2342.2,1.11554294]
[1726211647900,3.06744759,2342.3,2342.2,1.11554294]
[1726211648199,3.06744759,2342.3,2342.2,0.42697]
[1726211648599,0.42697,2342.2,2342.1,1.54252294]
[1726211648898,0.42698,2342.1,2342.0,2.69364294]
[1726211649090,0.42698,2342.1,2342.0,2.29084294]
[1726211649694,0.42698,2342.1,2342.0,1.1753]
[1726211649890,0.42698,2342.1,2342.0,1.86384294]
[1726211650092,0.42698,2342.1,2341.9,1.11554294]
[1726211650093,0.427,2342.0,2341.9,1.11554294]
[1726211650493,0.427,2342.0,2341.8,0.82982]
[1726211650800,0.81622,2341.9,2341.8,0.82982]
[1726211655195,0.3892,2341.9,2341.8,0.82982]
[1726211655396,0.81622,2341.9,2341.8,0.82982]
[1726211657301,0.42701,2342.0,2341.9,0.42701]
[1726211657606,0.80887,2342.2,2342.1,0.42698]
[1726211658301,0.42698,2342.1,2342.0,0.42699]
[1726211659909,0.3819,2342.2,2342.1,0.42698]
[1726211659910,0.80887,2342.2,2342.1,0.42698]
[1726211661613,0.3819,2342.2,2342.1,0.42698]
[1726211661813,0.80888,2342.2,2341.9,1.54]
[1726211662209,0.80888,2342.2,2342.1,0.42698]
[1726211667615,0.3819,2342.2,2342.1,0.42698]
[1726211667821,0.3819,2342.2,2342.1,0.42697]
[1726211667822,0.42697,2342.2,2342.1,0.42697]
[1726211670008,0.42699,2342.1,2342.0,0.42699]
[1726211670215,0.83439,2342.1,2342.0,0.42699]
[1726211670416,0.42701,2342.0,2341.9,0.42701]
[1726211670617,3.63481,2342.0,2341.9,0.42701]
[1726211671612,2.3744,2342.1,2342.0,0.427]
[1726211672011,1.9474,2342.1,2341.9,0.42701]
[1726211672210,2.3744,2342.1,2342.0,0.427]
[1726211672423,1.9474,2342.1,2341.8,0.4028]
[1726211672723,0.42701,2342.0,2341.9,0.42701]
[1726211672915,2.37439,2342.1,2342.0,0.427]
[1726211673115,3.2078,2342.3,2342.0,1.54]
[1726211673316,9.12344927,2342.7,2342.2,1.96697]
[1726211673626,9.12344927,2342.7,2342.6,0.42689]
[1726211673627,1.178,2342.7,2342.6,0.42689]
[1726211673928,1.178,2342.7,2342.5,0.4269]
[1726211673929,1.20438,2342.7,2342.5,0.4269]
[1726211674223,5.47318,2342.7,2342.5,0.8089]
[1726211674917,1.20438,2342.7,2342.5,0.8089]
[1726211676418,1.20438,2342.7,2342.5,0.382]
[1726211676419,0.7775,2342.7,2342.5,0.382]
[1726211676722,4.55129759,2342.7,2342.5,0.382]
[1726211677223,4.97817759,2342.7,2342.5,0.8089]
[1726211678020,1.54,2342.6,2342.5,0.382]
[1726211678910,5.8088,2342.6,2342.5,0.382]
[1726211679426,1.54,2342.6,2342.5,0.382]
[1726211679616,1.54,2342.6,2342.5,0.80891]
[1726211681128,3.77379759,2342.6,2342.5,0.80891]
[1726211682825,4.20068759,2342.6,2342.5,0.80891]
[1726211690834,1.96689,2342.6,2342.5,0.80891]
[1726211691136,4.19713652,2342.6,2342.5,0.80891]
[1726211691323,1.96689,2342.6,2342.5,0.80891]
[1726211692426,4.76034168,2342.6,2342.5,0.80891]
[1726211693023,3.22034168,2342.6,2342.5,0.80891]
[1726211694629,6.42814168,2342.6,2342.5,0.80891]
[1726211695234,3.63469,2342.6,2342.5,0.80891]
[1726211695428,6.42814168,2342.6,2342.5,0.80891]
[1726211695634,3.63469,2342.6,2342.5,0.80891]
[1726211696139,6.42814168,2342.6,2342.5,0.80891]
[1726211696448,7.54125168,2342.6,2342.4,0.42692]
[1726211696739,2.6279111,2342.5,2342.4,0.42692]
[1726211697530,3.0548211,2342.5,2342.4,0.42692]
[1726211700737,2.6575211,2342.5,2342.4,0.42692]
[1726211700940,2.6575211,2342.5,2342.4,0.83222]
[1726211702140,2.2306111,2342.5,2342.4,3.43955]
[1726211702444,3.2078,2342.6,2342.5,0.42691]
[1726211702840,3.2078,2342.6,2342.5,0.81081]
[1726211703342,3.2078,2342.6,2342.5,1.87809]
[1726211705340,3.2078,2342.6,2342.5,0.81081]
[1726211708543,5.4384111,2342.6,2342.5,0.81081]
[1726211708738,3.2078,2342.6,2342.5,0.81081]
[1726211710552,4.9771911,2342.7,2342.6,0.42689]
[1726211710750,4.9773964,2342.7,2342.6,0.42689]
[1726211711054,2.74658,2342.7,2342.6,0.42689]
[1726211712750,5.95438,2342.7,2342.6,0.42689]
[1726211713059,8.74783168,2342.7,2342.6,0.42689]
[1726211716058,8.74783168,2342.7,2342.5,0.3839]
[1726211716059,0.42689,2342.6,2342.5,0.81079]
[1726211716262,2.23169161,2342.6,2342.5,0.81079]
[1726211717458,8.74784168,2342.7,2342.6,0.42689]
[1726211717653,5.54004168,2342.7,2342.6,0.42689]
[1726211717964,8.74784168,2342.7,2342.6,0.42689]
[1726211718347,5.95439,2342.7,2342.6,0.42689]
[1726211719063,2.79205635,2342.7,2342.6,0.42689]
[1726211719256,2.79205635,2342.8,2342.7,0.42687]
[1726211719464,2.79205635,2342.9,2342.8,0.42686]
[1726211720151,3.21889635,2342.9,2342.8,0.42686]
[1726211720751,2.79205635,2342.9,2342.8,0.42686]
[1726211722171,2.79205635,2342.9,2342.8,6.23486]
[1726211722457,2.79205635,2343.0,2342.9,0.42684]
[1726211722866,2.79205635,2343.0,2342.9,4.69484]
[1726211723562,3.21886635,2343.1,2343.0,0.42682]
[1726211724253,2.79205635,2343.1,2343.0,0.42682]
[1726211729571,6.42666635,2343.1,2343.0,0.42682]
[1726211733276,3.63461,2343.1,2343.0,0.42682]
[1726211737066,0.42681,2343.1,2343.0,0.42682]
[1726211737267,3.63461,2343.1,2343.0,0.42682]
[1726211738574,0.42681,2343.1,2343.0,0.42682]
[1726211738769,0.42682,2343.0,2342.9,0.83793]
[1726211738977,2.65661829,2343.0,2342.9,0.83793]
[1726211739376,4.19661829,2343.0,2342.9,0.83793]
[1726211741167,2.22979829,2343.0,2342.9,0.83793]
[1726211741363,2.22979829,2343.0,2342.9,1.23593]
[1726211741567,2.65661829,2343.0,2342.9,1.23593]
[1726211747774,0.42682,2343.0,2342.9,1.23593]
[1726211749177,2.65750949,2343.0,2342.9,1.23593]
[1726211749577,5.86530949,2343.0,2342.9,1.23593]
[1726211749776,5.43848949,2343.0,2342.9,1.23593]
[1726211750384,5.86530949,2343.0,2342.9,1.23593]
[1726211750882,2.23068949,2343.0,2342.9,1.23593]
[1726211751083,2.23068949,2343.2,2343.0,1.49388]
[1726211751277,2.79205635,2343.3,2343.2,0.42678]
[1726211751278,2.23068949,2343.3,2343.2,0.42678]
[1726211751677,6.79859635,2343.5,2343.3,0.42676]
[1726211751888,2.65746177,2343.4,2343.3,0.79966]
[1726211752075,0.42675,2343.4,2343.3,0.79966]
[1726211753984,2.65703075,2343.4,2343.3,0.79966]
[1726211754578,0.42675,2343.4,2343.3,0.3729]
[1726211754785,0.42675,2343.4,2343.3,0.79966]
[1726211755482,2.6566809,2343.4,2343.3,0.79966]
[1726211756286,2.2299309,2343.4,2343.3,0.79966]
[1726211757682,5.4377309,2343.5,2343.4,0.42675]
[1726211758289,5.43794989,2343.5,2343.4,0.42675]
[1726211760290,3.21877635,2343.6,2343.4,4.69395]
[1726211760291,2.23014989,2343.6,2343.4,4.69395]
[1726211760497,2.23014989,2343.6,2343.5,0.42673]
[1726211760687,2.23014989,2343.6,2343.5,0.81073]
[1726211763094,0.3949,2343.7,2343.6,0.42671]
[1726211763095,2.62504989,2343.7,2343.6,0.42671]
[1726211763287,2.23014989,2343.7,2343.6,0.42671]
[1726211763598,2.23014989,2343.7,2343.6,0.80461]
[1726211763794,2.23014989,2343.7,2343.6,2.34461]
[1726211764401,5.43794989,2343.8,2343.7,0.42669]
[1726211764590,3.2078,2343.8,2343.7,0.80609]
[1726211765494,5.43774357,2343.8,2343.7,0.80609]
[1726211766397,3.2078,2343.8,2343.7,3.41283]
[1726211767407,2.22994357,2344.0,2343.9,0.42666]
[1726211767903,2.63994357,2344.1,2344.0,0.42664]
[1726211768297,2.63949531,2344.1,2344.0,0.42664]
[1726211770296,0.41,2344.1,2344.0,0.42664]
[1726211770992,2.63949531,2344.1,2344.0,0.42664]
[1726211771398,0.41,2344.1,2344.0,0.42664]
[1726211772099,2.63949531,2344.1,2344.0,0.42664]
[1726211772399,0.41,2344.1,2344.0,0.42664]
[1726211772994,0.41,2344.1,2344.0,0.79924]
[1726211775299,0.41,2344.1,2343.9,1.919]
[1726211775499,0.41,2344.1,2343.9,0.42665]
[1726211775500,4.43284,2344.0,2343.9,0.42665]
[1726211776503,4.0062,2344.0,2343.9,0.42665]
[1726211777800,4.43284,2344.0,2343.9,0.42665]
[1726211778603,0.42666,2343.9,2343.8,0.42667]
[1726211778809,4.43284,2344.0,2343.9,0.42666]
[1726211779604,0.42666,2343.9,2343.8,0.42666]
[1726211779800,0.42666,2343.9,2343.7,1.9407]
[1726211780002,0.3809,2343.8,2343.7,1.96669]
[1726211781202,4.43284,2344.0,2343.9,0.42666]
[1726211781396,0.7984,2344.0,2343.9,0.42666]
[1726211781711,0.3809,2344.1,2344.0,0.42664]
[1726211781912,0.42664,2344.0,2343.9,0.42664]
[1726211782299,0.80754,2344.1,2343.8,2.3502]
[1726211782500,0.42664,2344.0,2343.9,0.42666]
[1726211782701,0.42666,2343.9,2343.8,0.42666]
[1726211782999,0.42668,2343.8,2343.7,0.42668]
[1726211783202,0.7769,2343.8,2343.6,0.8076]
[1726211783402,0.7769,2343.8,2343.6,0.42671]
[1726211783403,0.42669,2343.7,2343.6,0.42671]
[1726211788205,0.3819,2343.8,2343.7,0.42669]
[1726211788511,0.42664,2344.0,2343.9,0.42664]
[1726211788706,0.42664,2344.0,2343.9,1.96664]
[1726211795303,3.03873531,2344.1,2344.0,0.42664]
[1726211795723,3.03873531,2344.1,2344.0,0.80294]
[1726211796713,0.80924,2344.1,2344.0,0.80294]
[1726211798215,0.42664,2344.0,2343.9,1.96664]
[1726211798418,3.06074728,2344.0,2343.9,1.96664]
[1726211798615,3.06074728,2344.0,2343.9,0.42664]
[1726211799010,3.06074728,2344.0,2343.8,1.927]
[1726211799011,0.42666,2343.9,2343.8,2.35366]
[1726211799212,0.42668,2343.8,2343.7,0.42668]
[1726211799512,0.4011,2343.8,2343.7,0.42668]
[1726211799905,0.82777,2343.8,2343.7,0.42668]
[1726211800118,0.4011,2343.8,2343.7,0.42668]
[1726211801323,2.65587728,2343.9,2343.8,0.42667]
[1726211801619,0.42667,2343.9,2343.8,0.42667]
[1726211803523,3.21872635,2343.9,2343.8,0.42667]
[1726211809730,0.42669,2343.8,2343.7,0.42668]
[1726211809923,3.61784635,2343.8,2343.7,0.42668]
[1726211812216,3.21874635,2343.8,2343.7,0.42668]
[1726211813234,3.21872635,2343.8,2343.7,0.42668]
[1726211815928,2.79205635,2343.8,2343.7,12.23308]
[1726211816125,2.23420719,2343.8,2343.7,15.82146129]
[1726211816938,2.23420719,2343.9,2343.8,0.42667]
[1726211817231,2.23420719,2343.9,2343.8,7.35261424]
[1726211817432,2.23420719,2343.9,2343.8,13.35261424]
[1726211817635,2.23420719,2343.9,2343.8,13.74221424]
[1726211818026,2.23420719,2343.9,2343.8,7.74221424]
[1726211818437,2.23420719,2343.9,2343.8,6.62267]
[1726211820537,2.23420719,2343.9,2343.8,8.80890424]
[1726211820936,2.23420719,2344.0,2343.9,1.49331]
[1726211821233,5.44200719,2344.1,2344.0,1.49324]
[1726211821433,5.44200719,2344.1,2344.0,4.15263328]
[1726211821730,3.2078,2344.1,2344.0,4.15263328]
[1726211822328,2.23420719,2344.3,2344.1,1.06656]
[1726211822528,2.23420719,2344.4,2344.3,0.42658]
[1726211822728,2.23420719,2344.4,2344.2,3.03948836]
[1726211822729,2.61940719,2344.5,2344.4,0.42656]
[1726211822933,2.61940719,2344.5,2344.4,1.96656]
[1726211824429,0.3852,2344.5,2344.4,1.96656]
[1726211824938,3.04595719,2344.5,2344.4,1.96656]
[1726211825139,2.61940719,2344.5,2344.4,1.96656]
[1726211825437,3.04595719,2344.5,2344.4,1.54]
[1726211826153,2.61940719,2344.5,2344.4,1.96656]
[1726211826435,2.23420719,2344.5,2344.4,1.96656]
[1726211826631,2.60470719,2344.6,2344.5,0.42655]
[1726211827229,2.23420719,2344.6,2344.5,0.42655]
[1726211827826,0.42651,2344.7,2344.5,0.42655]
[1726211827827,2.66071719,2344.7,2344.5,0.42655]
[1726211828131,2.65655962,2344.7,2344.6,1.54]
[1726211829536,0.42651,2344.7,2344.6,1.96653]
[1726211829731,2.65655962,2344.7,2344.6,1.96653]
[1726211829935,0.42651,2344.7,2344.6,1.96653]
[1726211830139,2.65655962,2344.7,2344.6,1.96653]
[1726211830334,0.42651,2344.7,2344.6,1.96653]
[1726211830835,2.65655962,2344.7,2344.6,1.96653]
[1726211832229,0.42654,2344.6,2344.5,1.54]
[1726211832429,0.42654,2344.6,2344.4,0.42656]
[1726211832626,0.81745,2344.5,2344.4,0.42656]
[1726211833231,0.3909,2344.5,2344.4,0.42656]
[1726211833433,0.42656,2344.4,2344.3,1.96657]
[1726211834042,0.42656,2344.4,2344.3,1.96658]
[1726211834238,1.21316,2344.4,2344.3,1.96658]
[1726211834535,0.4266,2344.3,2344.2,1.54]
[1726211834737,0.7866,2344.4,2344.1,0.42661]
[1726211834933,2.60648,2344.3,2343.9,0.42664]
[1726211835134,2.60648,2344.3,2343.6,5.94788442]
[1726211835135,1.06656,2344.1,2343.8,0.42667]
[1726211835335,0.42666,2343.9,2343.8,0.42667]
[1726211835841,0.42666,2343.9,2343.7,0.42668]
[1726211836838,0.42667,2343.8,2343.7,0.42668]
[1726211837039,0.42667,2343.9,2343.7,0.42668]
[1726211839347,1.61574,2344.0,2343.9,0.42666]
[1726211839640,1.61574,2344.0,2343.8,0.42666]
[1726211840142,1.61575,2344.0,2343.8,0.42666]
[1726211840336,0.42666,2343.9,2343.8,0.42666]
[1726211844240,1.61575,2344.0,2343.8,0.42666]
[1726211844843,0.42666,2343.9,2343.8,0.42666]
[1726211845951,1.61575,2344.0,2343.8,0.42666]
[1726211846143,0.42666,2343.9,2343.8,0.81666]
[1726211846539,1.61575,2344.0,2343.8,0.81666]
[1726211846739,2.23004962,2344.1,2343.8,2.99668]
[1726211846940,0.93501,2344.2,2344.1,0.42662]
[1726211847134,0.83601,2344.2,2344.0,1.96662]
[1726211847339,0.83601,2344.2,2344.1,0.42662]
[1726211848345,0.836,2344.2,2344.1,0.42662]
[1726211848938,0.4094,2344.2,2343.8,0.39]
[1726211849148,0.42665,2344.0,2343.8,0.81666]
[1726211849447,0.42667,2343.9,2343.6,4.7478]
[1726211849747,1.20487,2343.9,2343.8,0.42667]
[1726211851443,0.82387,2343.9,2343.8,0.42667]
[1726211855050,0.42667,2343.8,2343.7,1.96668]
[1726211855248,0.82387,2343.9,2343.8,0.42667]
[1726211855755,1.46386,2343.9,2343.6,3.6345]
[1726211856159,0.42669,2343.8,2343.7,0.42669]
[1726211861446,0.42667,2343.8,2343.7,0.42669]
[1726211868960,0.42667,2343.9,2343.8,0.42667]
[1726211872570,2.65671962,2343.9,2343.8,0.42667]
[1726211874566,2.23004962,2343.9,2343.8,0.42667]
[1726211874765,2.23004962,2343.9,2343.6,2.60678]
[1726211874978,2.65670962,2343.9,2343.8,0.42666]
[1726211875772,2.23004962,2343.9,2343.8,0.42666]
[1726211875966,3.2078,2344.0,2343.9,0.42666]
[1726211875967,5.43784962,2344.0,2343.9,0.42666]
[1726211876167,5.43784962,2344.0,2343.9,1.20226]
[1726211877175,5.86448962,2344.0,2343.9,1.20226]
[1726211877575,3.63444,2344.0,2343.9,1.20226]
[1726211878373,0.42664,2344.0,2343.9,1.20226]
[1726211878577,6.42649635,2344.0,2343.9,1.20226]
[1726211879983,5.99985635,2344.0,2343.9,1.20226]
[1726211880382,6.42649635,2344.0,2343.9,1.20226]
[1726211880580,3.2078,2344.0,2343.9,1.20226]
[1726211881282,3.63444,2344.0,2343.9,1.20226]
[1726211882484,0.42664,2344.0,2343.9,1.20226]
[1726211882687,0.3817,2344.1,2344.0,0.42664]
[1726211882886,2.79312935,2344.1,2344.0,1.96664]
[1726211883284,2.79312935,2344.1,2344.0,0.42664]
[1726211883894,3.16892935,2344.1,2344.0,0.42664]
[1726211884393,3.59549961,2344.1,2344.0,0.42664]
[1726211884591,3.59549961,2344.1,2343.9,0.42665]
[1726211884592,0.42664,2344.0,2343.9,0.42665]
[1726211884897,3.98579367,2344.0,2343.9,0.42665]
[1726211885684,1.19274,2344.0,2343.9,0.42665]
[1726211888190,3.98638566,2344.0,2343.9,0.42665]
[1726211888486,3.60738566,2344.0,2343.9,0.42665]
[1726211888687,2.79364566,2344.0,2343.9,0.42665]
[1726211888888,0.80243,2344.1,2344.0,0.42664]
[1726211889289,0.42664,2344.0,2343.9,0.42664]
[1726211889595,3.22077291,2344.0,2343.9,0.42664]
[1726211891299,2.79413291,2344.0,2343.9,0.42664]
[1726211893095,0.80243,2344.1,2344.0,0.42664]
[1726211894195,0.80243,2344.1,2343.9,0.42664]
[1726211894399,2.79436861,2344.0,2343.9,0.42664]
[1726211895203,0.3758,2344.1,2344.0,0.42664]
[1726211895400,3.17043301,2344.1,2344.0,0.42664]
[1726211895598,2.79463301,2344.1,2344.0,0.42664]
[1726211895799,2.79463301,2344.1,2344.0,1.21304]
[1726211897108,0.82429,2344.3,2344.1,0.42662]
[1726211897109,2.79463301,2344.2,2344.1,0.42662]
[1726211898500,0.7637,2344.4,2344.3,0.42658]
[1726211898501,2.23525568,2344.4,2344.3,0.42658]
[1726211898704,2.79463301,2344.5,2344.4,0.42656]
[1726211899504,3.22118301,2344.5,2344.4,0.42656]
[1726211900999,2.79463301,2344.5,2344.4,0.42656]
[1726211901200,2.79463301,2344.5,2344.4,1.96656]
[1726211901400,3.19791077,2344.6,2344.5,0.42655]
[1726211901613,0.83234,2344.6,2344.5,0.42655]
[1726211901805,3.624488,2344.6,2344.4,1.96655]
[1726211902013,3.197948,2344.6,2344.4,1.96655]
[1726211902206,3.624488,2344.6,2344.5,0.42655]
[1726211902407,3.62400252,2344.6,2344.5,0.42655]
[1726211904408,3.19746252,2344.6,2344.5,0.42655]
[1726211905001,0.4058,2344.6,2344.5,0.42655]
[1726211905211,0.4058,2344.6,2344.5,1.22385]
[1726211905911,2.63911091,2344.6,2344.5,2.76385]
[1726211906118,2.23331091,2344.6,2344.5,2.76385]
[1726211906716,2.61241091,2344.6,2344.5,2.76385]
[1726211908020,0.3791,2344.6,2344.5,2.76385]
[1726211908213,2.61241091,2344.6,2344.5,2.76385]
[1726211908913,2.61241091,2344.6,2344.5,0.42655]
[1726211911113,0.3791,2344.6,2344.5,0.42655]
[1726211911415,0.3791,2344.6,2344.5,1.96655]
[1726211911619,2.23331091,2344.7,2344.6,0.42653]
[1726211911809,2.23331091,2344.7,2344.6,1.18143]
[1726211912421,2.65982091,2344.7,2344.6,1.18143]
[1726211912811,2.65982091,2344.7,2344.6,0.7549]
[1726211913118,2.65982091,2344.7,2344.6,0.42653]
[1726211913816,2.23331091,2344.7,2344.6,0.42653]
[1726211914019,2.62781091,2344.8,2344.7,0.42651]
[1726211914812,3.05431091,2344.8,2344.6,0.42651]
[1726211915007,3.05431091,2344.8,2344.7,0.42651]
[1726211915008,3.05430091,2344.8,2344.7,0.42651]
[1726211915621,3.05430091,2344.8,2344.7,1.96651]
[1726211915816,2.23331091,2344.8,2344.7,1.96651]
[1726211916020,2.23331091,2344.9,2344.8,0.42649]
[1726211916210,5.44111091,2345.0,2344.9,1.96647]
[1726211917515,3.2078,2345.0,2344.9,1.96647]
[1726211917720,2.23331091,2345.1,2345.0,0.42646]
[1726211920822,2.65975091,2345.1,2345.0,0.42646]
[1726211922028,2.23331091,2345.1,2345.0,0.42646]
[1726211923027,2.65975091,2345.1,2345.0,0.42646]
[1726211923229,2.23331091,2345.1,2345.0,0.42646]
[1726211923526,2.65975091,2345.1,2345.0,0.42646]
[1726211924522,0.42644,2345.1,2345.0,0.42646]
[1726211924728,2.65975091,2345.1,2345.0,0.42646]
[1726211925123,0.42644,2345.1,2345.0,0.42645]
[1726211925431,2.65975091,2345.1,2345.0,0.42645]
[1726211925629,0.42646,2345.0,2344.9,1.54]
[1726211925828,0.42647,2344.9,2344.8,1.22468]
[1726211926023,0.80647,2344.9,2344.8,1.22468]
[1726211926917,0.80647,2344.9,2344.8,2.76468]
[1726211927317,0.38,2344.9,2344.8,2.76468]
[1726211928523,0.80647,2344.9,2344.8,2.76468]
[1726211929026,0.42646,2345.0,2344.9,0.42647]
[1726211929631,0.42646,2345.0,2344.9,0.81907]
[1726211930127,3.04896091,2345.1,2345.0,0.42646]
[1726211930435,2.23331091,2345.1,2345.0,1.96646]
[1726211930731,2.23331091,2345.4,2345.3,0.4264]
[1726211931031,0.42635,2345.6,2345.5,0.42636]
[1726211931230,5.84071091,2345.7,2345.6,0.42635]
[1726211931231,2.63431091,2345.7,2345.6,0.42635]
[1726211931430,0.82733,2345.7,2345.6,0.42635]
[1726211931737,5.09053,2345.7,2345.5,1.96635]
[1726211931922,0.42635,2345.6,2345.5,1.96635]
[1726211932125,0.42635,2345.6,2345.4,0.81537]
[1726211932328,0.42635,2345.6,2345.4,2.35537]
[1726211935125,0.42635,2345.6,2345.5,0.42636]
[1726211936132,0.401,2345.7,2345.4,1.96638]
[1726211936133,0.42636,2345.5,2345.4,1.96638]
[1726211936335,1.19596,2345.5,2345.4,1.96638]
[1726211936529,0.42635,2345.6,2345.5,0.42636]
[1726211936724,0.42635,2345.6,2345.5,0.81226]
[1726211936922,0.401,2345.7,2345.5,2.35226]
[1726211937126,0.82734,2345.7,2345.6,0.42635]
[1726211937328,0.82734,2345.7,2345.5,2.35225]
[1726211937529,0.42635,2345.6,2345.5,2.35225]
[1726211937737,0.42636,2345.5,2345.4,1.96638]
[1726211937940,0.42636,2345.5,2345.4,1.54]
[1726211938124,0.42636,2345.5,2345.1,0.42643]
[1726211938125,0.42643,2345.2,2345.1,0.42643]
[1726211938331,0.42643,2345.2,2345.0,5.37754]
[1726211938633,0.3845,2345.1,2345.0,6.91756]
[1726211938936,0.3816325,2345.1,2345.0,6.91756]
[1726211940426,0.8080725,2345.1,2345.0,5.738]
[1726211940631,0.8080725,2345.1,2345.0,4.62446]
[1726211940632,0.7544325,2345.1,2345.0,4.62446]
[1726211941628,1.1808725,2345.1,2345.0,4.198]
[1726211941835,1.1808725,2345.1,2345.0,0.42646]
[1726211942542,0.42646,2345.0,2344.9,1.96647]
[1726211942833,0.3929,2345.0,2344.9,1.96647]
[1726211943741,0.81936,2345.0,2344.9,1.96647]
[1726211944339,0.3929,2345.0,2344.9,1.96647]
[1726211944838,0.81936,2345.0,2344.9,1.96647]
[1726211945633,0.3929,2345.0,2344.9,1.96647]
[1726211946434,0.3816325,2345.1,2345.0,0.42646]
[1726211946630,0.8080725,2345.1,2345.0,0.42646]
[1726211946830,0.8080725,2345.1,2345.0,0.82726]
[1726211947034,0.42643,2345.2,2345.1,0.42644]
[1726211947238,1.44242,2345.3,2345.1,0.3895]
[1726211947239,0.81921,2345.3,2345.1,0.3895]
[1726211947438,0.3928,2345.3,2345.2,1.96642]
[1726211948237,0.8192,2345.3,2345.2,1.54]
[1726211948442,0.8192,2345.3,2345.2,1.96642]
[1726211948744,0.3928,2345.3,2345.2,1.96642]
[1726211950642,0.42639,2345.4,2345.2,1.96642]
[1726211950846,0.83189,2345.4,2345.2,1.96642]
[1726211951142,0.83189,2345.4,2345.3,0.4059]
[1726211951340,0.83189,2345.4,2345.3,0.8323]
[1726211951937,0.83189,2345.4,2345.3,0.4059]
[1726211953037,0.83189,2345.4,2345.3,0.8323]
[1726211953736,0.83188,2345.4,2345.3,0.8323]
[1726211954629,0.42638,2345.4,2345.3,0.8323]
[1726211955435,0.42638,2345.4,2345.3,0.4059]
[1726211955629,0.42638,2345.4,2345.2,1.96641]
[1726211955630,0.4264,2345.3,2345.2,0.42641]
[1726211955839,0.8043,2345.3,2345.2,0.42641]
[1726211959140,0.4264,2345.3,2345.2,0.42641]
[1726211961153,2.62891091,2345.4,2345.3,0.4264]
[1726211961741,2.23331091,2345.4,2345.3,1.9664]
[1726211961944,0.42638,2345.5,2345.4,0.42638]
[1726211962345,0.42638,2345.5,2345.4,0.80958]
[1726211962645,3.21801252,2345.6,2345.5,0.42636]
[1726211962837,2.65869844,2345.6,2345.5,0.42636]
[1726211963043,2.65876656,2345.6,2345.5,0.42636]
[1726211963748,5.86656656,2345.6,2345.5,0.42636]
[1726211964050,5.86670991,2345.6,2345.5,0.42636]
[1726211964247,3.63415,2345.6,2345.5,0.42636]
[1726211964545,5.86670067,2345.6,2345.5,0.42636]
[1726211964742,3.63415,2345.6,2345.5,1.21326]
[1726211964954,5.86664567,2345.6,2345.5,1.21326]
[1726211965343,5.8666339,2345.6,2345.5,1.21326]
[1726211965543,5.4402839,2345.6,2345.5,1.21326]
[1726211966250,5.8666339,2345.6,2345.5,1.21326]
[1726211967054,5.4402839,2345.6,2345.5,1.21326]
[1726211967849,5.8666339,2345.6,2345.5,1.21326]
[1726211968248,3.63415,2345.6,2345.5,1.21326]
[1726211968455,0.42636,2345.5,2345.1,1.06608]
[1726211968640,0.42639,2345.4,2345.3,0.42639]
[1726211968843,0.80909,2345.4,2345.3,0.42639]
[1726211969041,0.3827,2345.4,2345.3,0.42639]
[1726211971854,3.03431564,2345.5,2345.2,1.54]
[1726211971855,2.65931564,2345.5,2345.4,0.42638]
[1726211973557,2.6605277,2345.5,2345.4,0.42638]
[1726211973761,2.66055671,2345.5,2345.4,0.42638]
[1726211973961,2.66055836,2345.5,2345.4,0.42638]
[1726211974147,0.42639,2345.4,2345.3,0.42638]
[1726211974455,2.6605539,2345.4,2345.3,0.4264]
[1726211975148,0.42641,2345.3,2345.2,0.42641]
[1726211975355,3.0523839,2345.3,2345.2,0.42641]
[1726211975764,0.81821,2345.3,2345.2,0.42641]
[1726211976053,0.81821,2345.3,2345.1,1.1669]
[1726211976054,0.42642,2345.2,2345.1,1.59332]
[1726211976458,2.23534386,2345.2,2345.1,1.59332]
[1726211978053,2.23534386,2345.2,2344.9,3.72517836]
[1726211978054,2.23534386,2345.2,2344.9,2.65898836]
[1726211978263,2.66178386,2345.1,2344.9,1.88298836]